[Event "53rd Mar Del Plata Open 2024"]
[Site "Mar Del Plata"]
[Date "2024.03.29"]
[Round "7.3"]
[White "Acosta, Pablo Ismael"]
[Black "Needleman, Alejandro"]
[Result "1-0"]
[ECO "E65"]
[WhiteElo "2463"]
[BlackElo "2215"]
[Annotator "TA"]
[PlyCount "75"]
[EventDate "2024.03.23"]
[EventType "swiss"]
[EventCountry "ARG"]
[SourceTitle "playchess.com"]
[Source "ChessBase"]
[SourceQuality "1"]
[TimeControl "5400+30"]

{[%evp 17,75,26,33,10,20,-12,34,28,33,29,37,25,54,61,80,74,82,76,83,78,108,54,52,19,22,37,31,28,34,20,91,81,118,105,185,188,200,145,135,123,120,108,93,0,0,0,0,0,0,0,0,0,1008,1003,678,678,29987,29988,29988,29989]} 1. Nf3 {[%emt 0:02:40]} Nf6 {[%emt 0:01:08]} 2. c4 {[%emt 0:00:54]} c5 {[%emt 0:01:24]} 3. g3 {[%emt 0:03:31]} g6 {[%emt 0:05:01]} 4. Bg2 {[%emt 0:02:16]} Bg7 {[%emt 0:00:09]} 5. Nc3 {[%emt 0:00:19]} O-O {[%emt 0:00:13]} 6. d4 {[%emt 0:01:51]} cxd4 {[%emt 0:01:29]} 7. Nxd4 {[%emt 0:00:04]} Nc6 {[%emt 0:00:09]} 8. O-O {[%emt 0:01:30]} d6 {[%emt 0:04:29]} 9. Nxc6 {[%emt 0:11:24]} bxc6 {[%emt 0:02:20]} 10. Qa4 {[%emt 0:00:27]} Bd7 {[%emt 0:05:17]} 11. c5 {[%emt 0:08:34]} dxc5 {[%emt 0:04:20]} (11... d5 $11) 12. Be3 $14 {[%emt 0:15:37] White is slightly better.} Nd5 {[%emt 0:05:37]} 13. Bxc5 {[%emt 0:01:59]} Qc8 {[%emt 0:13:22]} 14. Rac1 {[%emt 0:21:12]} (14. Bxa7 $2 Nxc3 15. bxc3 Qc7 $19) 14... Qb7 {[%emt 0:11:38]} 15. Rfd1 {[%emt 0:04:04]} Rfc8 {[%emt 0:03:42]} 16. Bd4 {[%emt 0:03:50]} Bxd4 {[%emt 0:06:59]} 17. Qxd4 {[%emt 0:00:45]} (17. Rxd4 Qxb2 18. Qc2 Rab8 19. Bxd5 cxd5 20. Qxb2 Rxb2 21. Rxd5 Bh3 $15) 17... Nxc3 {[%emt 0:03:53]} 18. Qxc3 {[%emt 0:00:02]} (18. bxc3 Be6 $11) 18... Be6 {[%emt 0:01:47] Black is weak on the dark squares} 19. a3 {[%emt 0:01:37]} (19. Bxc6 $16 Qb6 20. b4) 19... Bd5 {[%emt 0:04:11]} 20. e4 {[%emt 0:02:21]} Be6 {[%emt 0:00:37]} 21. h4 {[%emt 0:00:37]} h5 {[%emt 0:02:33]} 22. Rd2 {[%emt 0:01:44]} Qb6 {[%emt 0:02:45]} 23. e5 {[%emt 0:03:52][%cal Ob2b4]} Rab8 {[%emt 0:05:34]} (23... Rd8 $11) 24. b4 $1 $16 {[%emt 0:01:57]} (24. Bxc6 Qa6 25. b4 Rb6 $17) 24... Qa6 {[%emt 0:02:36]} 25. Qe3 {[%emt 0:01:57]} (25. Bxc6 Rb6 26. b5 Rxb5 27. Bxb5 Rxc3 28. Bxa6 Rxc1+ 29. Kh2 Rc5 30. Rd8+ Kg7 $17) 25... Qa4 {[%emt 0:01:57]} (25... Qb6 $16) 26. Rc5 $18 {[%emt 0:00:37]} Qa6 {[%emt 0:02:15]} 27. Be4 {[%emt 0:01:32]} Kg7 {[%emt 0:01:58] Against Qh6+} 28. Qc3 {[%emt 0:02:26] White is much more active.} Rd8 {[%emt 0:02:04]} 29. Rxc6 {[%emt 0:00:12]} Qa4 {[%emt 0:00:23]} 30. Kh2 {[%emt 0:02:12]} ({Better is} 30. Rxd8 $16 Rxd8 31. Kg2) 30... Rxd2 $11 {[%emt 0:00:26]} 31. Qxd2 {[%emt 0:03:57] Hoping for Qc3.} Qxa3 {[%emt 0:01:30]} 32. Rxe6 {[%emt 0:00:00]} Qxb4 {[%emt 0:00:08]} (32... fxe6 33. Qg5 Qxb4 34. Qxg6+ Kf8 35. Qh6+ Ke8 36. Qxe6 (36. Qxh5+ Kd7 $16)) 33. Qg5 {[%emt 0:00:12][%cal Re6g6] [#] White wants to mate with Rxg6+!} Qxe4 {[%emt 0:00:35]} 34. Qxe7 {[%emt 0:00:31][%cal Oe6f6] Black must now prevent Rf6!} Qa8 $2 {[%emt 0:04:27][%mdl 8192]} (34... Qf3 $11 35. Rf6 (35. Qxa7 {is a self mate.} Rb1) 35... Rb7) 35. Rf6 $18 {[%emt 0:00:20]} Rf8 {[%emt 0:00:06]} 36. e6 {[%emt 0:00:17][%cal Rf6f7]} a5 {[%emt 0:00:15]} 37. Rxf7+ {[%emt 0:00:12]} Rxf7 {[%emt 0:00:26]} 38. Qxf7+ {[%emt 0:01:58] Weighted Error Value: White=0.15 (very precise) /Black=0.28 (precise) .  Loses game:     	---       	Black=1      Mistake:       	White=2     	Black=3      Inaccurate:     	White=2     	Black=3      OK:         	White=10    	Black=14     Best:        	White=2     	Black=1      Strong:       	White=1     	---} 1-0

[Event "53rd Mar Del Plata Open 2024"]
[Site "Mar Del Plata"]
[Date "2024.03.29"]
[Round "7.4"]
[White "Villarreal, Agustin"]
[Black "Espinoza Palomino, Willyam"]
[Result "1/2-1/2"]
[ECO "D16"]
[WhiteElo "2285"]
[BlackElo "2400"]
[Annotator "TA"]
[PlyCount "43"]
[EventDate "2024.03.23"]
[EventType "swiss"]
[EventCountry "ARG"]
[SourceTitle "playchess.com"]
[Source "ChessBase"]
[SourceQuality "1"]
[TimeControl "5400+30"]

{[%evp 16,43,38,21,19,13,12,12,7,0,0,0,0,0,0,-17,0,0,0,0,7,14,7,18,19,0,0,0,0,-25]} 1. d4 {[%emt 0:02:26]} d5 {[%emt 0:00:15]} 2. Nf3 {[%emt 0:00:26]} Nf6 {[%emt 0:00:06]} 3. c4 {[%emt 0:00:03]} c6 {[%emt 0:00:04]} 4. Nc3 {[%emt 0:00:07]} dxc4 {[%emt 0:00:36]} 5. a4 {[%emt 0:00:08]} e6 {[%emt 0:01:45]} 6. e3 {[%emt 0:00:48]} c5 {[%emt 0:00:12]} 7. Bxc4 {[%emt 0:00:34]} Nc6 {[%emt 0:00:13]} 8. O-O {[%emt 0:00:35]} cxd4 {[%emt 0:01:19]} 9. exd4 {[%emt 0:02:28]} Be7 {[%emt 0:00:24] The position is equal.} 10. Qe2 {[%emt 0:00:01]} O-O {[%emt 0:00:31]} 11. Rd1 {[%emt 0:00:01]} Nb4 {[%emt 0:00:32]} 12. Ne5 {[%emt 0:03:07]} b6 {[%emt 0:16:12]} 13. Bg5 {[%emt 0:01:22]} Bb7 {[%emt 0:04:00] Prevents Qf3.} 14. Bxf6 {[%emt 0:22:10]} Bxf6 {[%emt 0:00:54]} 15. Ne4 {[%emt 0:00:01]} Rc8 {[%emt 0:08:15]} 16. Nxf6+ {[%emt 0:13:24]} Qxf6 {[%emt 0:18:36]} 17. Nd7 {[%emt 0:02:37][%csl LRf6,LRf8]} Qg6 {[%emt 0:09:00][%csl Gb7][%cal Rg6g2]} 18. d5 {[%emt 0:02:01][%cal Bd4d5,Bd5d6,Bd6d7][%mdl 32] And now Ne5 would win.} (18. Nxf8 $2 Qxg2#) 18... Rfe8 $1 {[%emt 0:01:58][%cal Re6d5]} 19. Ne5 {[%emt 0:01:40]} Qg5 {[%emt 0:03:13][%cal Re6d5] [#]} 20. h4 $1 {[%emt 0:12:44]} Qxh4 {[%emt 0:03:53]} 21. d6 {[%emt 0:00:37] Hoping for d7.} Rf8 {[%emt 0:29:02]} 22. d7 {[%emt 0:34:10] Not much happened in this game.   Weighted Error Value: White=0.05 (flawless) /Black=0.02 (flawless) .  OK:         	White=4     	Black=5      Best:        	White=2     	---        Strong:       	---       	Black=1} 1/2-1/2

[Event "53rd Mar Del Plata Open 2024"]
[Site "Mar Del Plata"]
[Date "2024.03.29"]
[Round "7.5"]
[White "Caruso, Tomas"]
[Black "Kiselev, Vitalii"]
[Result "0-1"]
[ECO "B28"]
[WhiteElo "2139"]
[BlackElo "2519"]
[Annotator "RC"]
[PlyCount "116"]
[EventDate "2024.03.23"]
[EventType "swiss"]
[EventCountry "ARG"]
[SourceTitle "playchess.com"]
[Source "ChessBase"]
[SourceQuality "1"]
[TimeControl "5400+30"]

1. e4 {[%emt 0:00:02]} c5 {[%emt 0:24:57]} 2. Nf3 {[%emt 0:00:08]} a6 {[%emt 0:00:20]} 3. c4 {[%emt 0:01:24]} d6 {[%emt 0:01:58]} 4. d4 {[%emt 0:00:41]} Bg4 {[%emt 0:00:15]} 5. dxc5 {[%emt 0:06:36]} Bxf3 {[%emt 0:00:16]} 6. gxf3 {[%emt 0:07:09]} Qa5+ {[%emt 0:00:37]} 7. Nc3 {[%emt 0:00:27]} dxc5 {[%emt 0:00:23]} 8. Qb3 {[%emt 0:09:02]} Nd7 {[%emt 0:00:31]} 9. Bf4 {[%emt 0:04:21]} O-O-O {[%emt 0:03:09]} 10. O-O-O {[%emt 0:09:56]} e6 {[%emt 0:00:41]} 11. Rg1 {[%emt 0:14:03]} Ne7 {[%emt 0:11:56]} 12. Bg5 {[%emt 0:14:31]} h6 {[%emt 0:11:34]} 13. Be3 {[%emt 0:06:34]} Nc6 {[%emt 0:00:22]} 14. f4 {[%emt 0:00:33]} g6 {[%emt 0:02:22]} 15. Bh3 {[%emt 0:06:53]} Nd4 {[%emt 0:02:41]} 16. Bxd4 {[%emt 0:01:06]} cxd4 {[%emt 0:00:03]} 17. Rxd4 {[%emt 0:01:36]} Nc5 {[%emt 0:02:01]} 18. Rxd8+ {[%emt 0:04:30]} Qxd8 {[%emt 0:00:04]} 19. Qd1 {[%emt 0:02:23]} Nd3+ {[%emt 0:00:29]} 20. Kc2 {[%emt 0:01:07]} Nxf4 {[%emt 0:00:05]} 21. Qxd8+ {[%emt 0:00:13]} Kxd8 {[%emt 0:00:05]} 22. Rd1+ {[%emt 0:00:21]} Kc7 {[%emt 0:00:02]} 23. Bf1 {[%emt 0:00:35]} Bd6 {[%emt 0:01:35]} 24. h3 {[%emt 0:01:47]} g5 {[%emt 0:00:05]} 25. Ne2 {[%emt 0:00:48]} Ng6 {[%emt 0:00:03]} 26. a3 {[%emt 0:01:08]} Bc5 {[%emt 0:00:48]} 27. Bg2 {[%emt 0:01:23]} a5 {[%emt 0:00:27]} 28. Kc3 {[%emt 0:01:29]} Ne5 {[%emt 0:08:53]} 29. Nd4 {[%emt 0:01:27]} a4 {[%emt 0:07:26]} 30. Rd2 {[%emt 0:01:49]} Rc8 {[%emt 0:03:46]} 31. Bf1 {[%emt 0:00:55]} Kb6 {[%emt 0:00:41]} 32. Nc2 {[%emt 0:00:35]} Ka5 {[%emt 0:06:12]} 33. b4+ {[%emt 0:00:34]} axb3 {[%emt 0:00:06]} 34. Kxb3 {[%emt 0:00:03]} Kb6 {[%emt 0:01:11]} 35. Nb4 {[%emt 0:01:04]} Ra8 {[%emt 0:00:20]} 36. a4 {[%emt 0:00:28]} Bxb4 {[%emt 0:01:07]} 37. Kxb4 {[%emt 0:00:07]} Nc6+ {[%emt 0:00:07]} 38. Kb3 {[%emt 0:00:24]} Rd8 {[%emt 0:00:10]} 39. Rxd8 {[%emt 0:01:01]} Nxd8 {[%emt 0:00:02]} 40. Kc3 {[%emt 0:00:26]} Nc6 {[%emt 0:03:08]} 41. Be2 {[%emt 0:00:19]} Kc5 {[%emt 0:00:32]} 42. Bh5 {[%emt 0:00:15]} Ne5 {[%emt 0:00:09]} 43. Be2 {[%emt 0:00:11]} b6 {[%emt 0:00:05]} 44. Bf1 {[%emt 0:00:30]} h5 {[%emt 0:00:26]} 45. Be2 {[%emt 0:00:23]} h4 {[%emt 0:00:12]} 46. f3 {[%emt 0:01:35]} Nc6 {[%emt 0:01:08]} 47. Kd3 {[%emt 0:00:11]} Ne5+ {[%emt 0:01:48]} 48. Kc3 {[%emt 0:00:50]} f6 {[%emt 0:00:05]} 49. Bd1 {[%emt 0:00:31]} Nxc4 {[%emt 0:01:17]} 50. Bb3 {[%emt 0:00:01]} Ne5 {[%emt 0:00:08]} 51. Bxe6 {[%emt 0:00:17]} Nxf3 {[%emt 0:00:04]} 52. Kd3 {[%emt 0:00:21]} Ne5+ {[%emt 0:00:21]} 53. Ke3 {[%emt 0:00:11]} Kb4 {[%emt 0:01:05]} 54. Kd4 {[%emt 0:00:09]} Kxa4 {[%emt 0:00:09]} 55. Kc3 {[%emt 0:00:10]} b5 {[%emt 0:00:16]} 56. Bb3+ {[%emt 0:00:13]} Ka3 {[%emt 0:00:05]} 57. Be6 {[%emt 0:00:04]} b4+ {[%emt 0:00:04]} 58. Kc2 {[%emt 0:00:02]} g4 {[%emt 0:00:35]} 0-1

[Event "53rd Mar Del Plata Open 2024"]
[Site "Mar Del Plata"]
[Date "2024.03.29"]
[Round "7.6"]
[White "Menna Barreto, Felipe Kubiaki"]
[Black "Amigo Quintana, Antu"]
[Result "1/2-1/2"]
[ECO "D30"]
[WhiteElo "2273"]
[BlackElo "2057"]
[Annotator "RC"]
[PlyCount "106"]
[EventDate "2024.03.23"]
[EventType "swiss"]
[EventCountry "ARG"]
[SourceTitle "playchess.com"]
[Source "ChessBase"]
[SourceQuality "1"]
[TimeControl "5400+30"]

1. c4 {[%emt 0:00:04]} e6 {[%emt 0:00:22]} 2. Nf3 {[%emt 0:00:16]} d5 {[%emt 0:00:05]} 3. e3 {[%emt 0:00:08]} Nf6 {[%emt 0:00:20]} 4. b3 {[%emt 0:00:16]} c6 {[%emt 0:00:54]} 5. Bb2 {[%emt 0:00:22]} Nbd7 {[%emt 0:01:07]} 6. d4 {[%emt 0:00:22]} Bd6 {[%emt 0:04:45]} 7. Nbd2 {[%emt 0:03:22]} O-O {[%emt 0:02:00]} 8. Bd3 {[%emt 0:01:17]} Qe7 {[%emt 0:07:53]} 9. Ne5 {[%emt 0:01:14]} c5 {[%emt 0:18:19]} 10. a3 {[%emt 0:07:56]} b6 {[%emt 0:01:03]} 11. O-O {[%emt 0:05:12]} Bb7 {[%emt 0:01:55]} 12. Qe2 {[%emt 0:15:40]} Ne4 {[%emt 0:09:26]} 13. Nxd7 {[%emt 0:03:14]} Qxd7 {[%emt 0:00:25]} 14. dxc5 {[%emt 0:05:44]} Nxc5 {[%emt 0:07:59]} 15. Bc2 {[%emt 0:02:31]} Ne4 {[%emt 0:07:49]} 16. cxd5 {[%emt 0:08:15]} exd5 {[%emt 0:03:50]} 17. Rfd1 {[%emt 0:02:26]} Qe6 {[%emt 0:08:51]} 18. Nf3 {[%emt 0:02:31]} Rac8 {[%emt 0:01:20]} 19. Rac1 {[%emt 0:07:21]} Rfd8 {[%emt 0:05:35]} 20. Nd4 {[%emt 0:03:09]} Qh6 {[%emt 0:01:13]} 21. g3 {[%emt 0:01:06]} Bf8 {[%emt 0:01:45]} 22. b4 {[%emt 0:17:54]} Nd6 {[%emt 0:02:47]} 23. Nf5 {[%emt 0:00:32]} Qh3 {[%emt 0:00:56]} 24. Nxd6 {[%emt 0:03:37]} Rxd6 {[%emt 0:00:37]} 25. Qf1 {[%emt 0:02:23]} Qxf1+ {[%emt 0:05:02]} 26. Kxf1 {[%emt 0:00:16]} Rdc6 {[%emt 0:03:32]} 27. Bd3 {[%emt 0:00:36]} Rxc1 {[%emt 0:01:49]} 28. Rxc1 {[%emt 0:00:22]} Rxc1+ {[%emt 0:00:18]} 29. Bxc1 {[%emt 0:00:02]} g6 {[%emt 0:00:36]} 30. Bb2 {[%emt 0:00:16]} Be7 {[%emt 0:01:10]} 31. b5 {[%emt 0:02:05]} f6 {[%emt 0:00:27]} 32. a4 {[%emt 0:00:23]} Kf7 {[%emt 0:00:17]} 33. Ke2 {[%emt 0:00:17]} Ke6 {[%emt 0:00:17]} 34. Kd2 {[%emt 0:00:20]} Bb4+ {[%emt 0:00:17]} 35. Bc3 {[%emt 0:00:22]} Bc5 {[%emt 0:00:28]} 36. f4 {[%emt 0:00:45]} f5 {[%emt 0:01:27]} 37. Be2 {[%emt 0:01:15]} Bd6 {[%emt 0:00:34]} 38. Bd4 {[%emt 0:01:04]} Bc5 {[%emt 0:00:43]} 39. Kc3 {[%emt 0:00:16]} Bxd4+ {[%emt 0:00:34]} 40. Kxd4 {[%emt 0:00:09]} Kd6 {[%emt 0:00:03]} 41. Bf3 {[%emt 0:00:31]} Ba8 {[%emt 0:01:14]} 42. h3 {[%emt 0:00:50]} h5 {[%emt 0:00:32]} 43. g4 {[%emt 0:01:19]} hxg4 {[%emt 0:00:17]} 44. hxg4 {[%emt 0:00:03]} Bb7 {[%emt 0:01:37]} 45. gxf5 {[%emt 0:04:57]} gxf5 46. Bg2 {[%emt 0:00:00]} Ba8 {[%emt 0:00:00]} 47. Bf1 {[%emt 0:00:00]} Bb7 {[%emt 0:00:00]} 48. Be2 {[%emt 0:00:00]} Bc8 {[%emt 0:00:13]} 49. Bh5 {[%emt 0:00:00]} Be6 {[%emt 0:00:53]} 50. Bg6 {[%emt 0:00:00]} Bd7 {[%emt 0:00:46]} 51. Bf7 {[%emt 0:00:00]} Be6 {[%emt 0:00:08]} 52. Bg6 {[%emt 0:00:25]} Bd7 {[%emt 0:00:05]} 53. Bf7 {[%emt 0:00:10]} Be6 {[%emt 0:02:25]} 1/2-1/2

[Event "53rd Mar Del Plata Open 2024"]
[Site "Mar Del Plata"]
[Date "2024.03.29"]
[Round "7.7"]
[White "Romero Barreto, Jaime Jose"]
[Black "Granara Barreto, Sebastian"]
[Result "1-0"]
[ECO "B11"]
[WhiteElo "2320"]
[BlackElo "2108"]
[Annotator "RC"]
[PlyCount "89"]
[EventDate "2024.03.23"]
[EventType "swiss"]
[EventCountry "ARG"]
[SourceTitle "playchess.com"]
[Source "ChessBase"]
[SourceQuality "1"]
[TimeControl "5400+30"]

1. e4 {[%emt 0:00:06]} c6 {[%emt 0:04:04]} 2. Nc3 {[%emt 0:01:37]} d5 {[%emt 0:00:27]} 3. f4 {[%emt 0:00:26]} dxe4 {[%emt 0:01:08]} 4. Nxe4 {[%emt 0:00:06]} Nf6 {[%emt 0:00:06]} 5. Nf2 {[%emt 0:00:06]} g6 {[%emt 0:01:24]} 6. Nf3 {[%emt 0:00:18]} Bg7 {[%emt 0:00:06]} 7. g3 {[%emt 0:00:09]} O-O {[%emt 0:01:25]} 8. Bg2 {[%emt 0:00:07]} c5 {[%emt 0:04:07]} 9. O-O {[%emt 0:01:39]} Nc6 {[%emt 0:00:09]} 10. d3 {[%emt 0:21:04]} Qb6 {[%emt 0:05:01]} 11. Nd2 {[%emt 0:01:55]} Be6 {[%emt 0:02:21]} 12. c3 {[%emt 0:01:03]} Rad8 {[%emt 0:03:35]} 13. Qe2 {[%emt 0:00:29]} Qc7 {[%emt 0:05:50]} 14. Nde4 {[%emt 0:04:23]} b6 {[%emt 0:03:28]} 15. h3 {[%emt 0:05:49]} Bd5 {[%emt 0:09:38]} 16. a3 {[%emt 0:07:47]} a5 {[%emt 0:01:32]} 17. Be3 {[%emt 0:03:03]} Nh5 {[%emt 0:11:04]} 18. Nh1 {[%emt 0:06:42]} f5 {[%emt 0:08:10]} 19. g4 {[%emt 0:12:18]} fxg4 {[%emt 0:16:03]} 20. Qxg4 {[%emt 0:00:37]} Qd7 {[%emt 0:02:11]} 21. Rad1 {[%emt 0:05:35]} Qxg4 {[%emt 0:05:47]} 22. hxg4 {[%emt 0:00:07]} Nf6 {[%emt 0:00:03]} 23. Nhf2 {[%emt 0:02:14]} e5 {[%emt 0:03:03]} 24. f5 {[%emt 0:04:11]} Ne7 {[%emt 0:00:09]} 25. Nxf6+ {[%emt 0:09:12]} Bxf6 {[%emt 0:02:58]} 26. Ne4 {[%emt 0:00:39]} gxf5 {[%emt 0:01:41]} 27. gxf5 {[%emt 0:00:06]} Kh8 {[%emt 0:01:12]} 28. Kh2 {[%emt 0:02:27]} Bxe4 {[%emt 0:03:20]} 29. dxe4 {[%emt 0:02:15]} Nc6 {[%emt 0:00:21]} 30. Bf3 {[%emt 0:02:18]} Rg8 {[%emt 0:01:36]} 31. Rd5 {[%emt 0:01:43]} Ne7 {[%emt 0:00:25]} 32. Rxd8 {[%emt 0:00:03]} Rxd8 {[%emt 0:00:03]} 33. Be2 {[%emt 0:00:06]} Nc8 {[%emt 0:00:18]} 34. Bc4 {[%emt 0:00:36]} Nd6 {[%emt 0:01:30]} 35. Bd5 {[%emt 0:00:04]} Nb5 {[%emt 0:00:22]} 36. a4 {[%emt 0:01:50]} Nc7 {[%emt 0:00:10]} 37. Bc4 {[%emt 0:00:07]} Ne8 {[%emt 0:00:25]} 38. b4 {[%emt 0:01:32]} axb4 {[%emt 0:02:45]} 39. cxb4 {[%emt 0:00:05]} cxb4 {[%emt 0:00:20]} 40. Bxb6 {[%emt 0:00:20]} Rd2+ {[%emt 0:00:37]} 41. Rf2 {[%emt 0:01:21]} Rxf2+ {[%emt 0:00:30]} 42. Bxf2 {[%emt 0:00:05]} Nd6 {[%emt 0:02:06]} 43. Bd5 {[%emt 0:05:20]} b3 44. Bxb3 {[%emt 0:00:30]} Nxe4 45. a5 {[%emt 0:00:30]} 1-0

[Event "53rd Mar Del Plata Open 2024"]
[Site "Mar Del Plata"]
[Date "2024.03.29"]
[Round "7.8"]
[White "Melian, Juan Sebastian"]
[Black "Schnaider, Ilan"]
[Result "1-0"]
[ECO "B23"]
[WhiteElo "2157"]
[BlackElo "2314"]
[Annotator "RC"]
[PlyCount "101"]
[EventDate "2024.03.23"]
[EventType "swiss"]
[EventCountry "ARG"]
[SourceTitle "playchess.com"]
[Source "ChessBase"]
[SourceQuality "1"]
[TimeControl "5400+30"]

1. e4 {[%emt 0:00:04]} c5 {[%emt 0:00:05]} 2. Nc3 {[%emt 0:00:07]} d6 {[%emt 0:00:34]} 3. f4 {[%emt 0:00:10]} g6 {[%emt 0:00:04]} 4. Nf3 {[%emt 0:00:06]} Bg7 {[%emt 0:00:03]} 5. Bb5+ {[%emt 0:00:06]} Bd7 {[%emt 0:00:40]} 6. Bc4 {[%emt 0:00:13]} Nc6 {[%emt 0:00:57]} 7. O-O {[%emt 0:00:08]} e6 {[%emt 0:00:40]} 8. f5 {[%emt 0:00:31]} exf5 {[%emt 0:12:47]} 9. Qe1 {[%emt 0:01:33]} Nge7 {[%emt 0:01:28]} 10. d3 {[%emt 0:00:11]} h6 {[%emt 0:24:12]} 11. Bf4 {[%emt 0:08:35]} Ne5 {[%emt 0:09:13]} 12. exf5 {[%emt 0:07:32]} Nxc4 {[%emt 0:14:52]} 13. dxc4 {[%emt 0:14:24]} Bxf5 {[%emt 0:00:16]} 14. Rd1 {[%emt 0:04:30]} O-O {[%emt 0:07:41]} 15. Rxd6 {[%emt 0:00:03]} Qe8 {[%emt 0:01:20]} 16. Qd2 {[%emt 0:06:33]} Be6 {[%emt 0:04:49]} 17. Re1 {[%emt 0:01:48]} Nf5 {[%emt 0:01:13]} 18. Rd3 {[%emt 0:00:02]} Qc6 {[%emt 0:02:17]} 19. b3 {[%emt 0:01:37]} Kh7 {[%emt 0:01:33]} 20. Nb5 {[%emt 0:03:26]} Bf6 {[%emt 0:07:27]} 21. Ne5 {[%emt 0:10:06]} Qb6 {[%emt 0:03:13]} 22. Ng4 {[%emt 0:03:54]} Bh4 {[%emt 0:03:54]} 23. g3 {[%emt 0:09:23]} Be7 {[%emt 0:00:45]} 24. Bxh6 {[%emt 0:10:46]} Rfd8 {[%emt 0:00:41]} 25. Bg5 {[%emt 0:06:59]} Rxd3 {[%emt 0:00:34]} 26. cxd3 {[%emt 0:00:01]} Qd8 {[%emt 0:00:06]} 27. Bxe7 {[%emt 0:02:09]} Qxe7 {[%emt 0:00:00]} 28. Qc3 {[%emt 0:00:01]} Rd8 {[%emt 0:00:41]} 29. Nf6+ {[%emt 0:00:31]} Kh6 {[%emt 0:00:01]} 30. Qd2+ {[%emt 0:00:28]} Kg7 {[%emt 0:02:12]} 31. Nd5 {[%emt 0:00:06]} Qd7 {[%emt 0:00:12]} 32. Qb2+ {[%emt 0:08:35]} Kh6 {[%emt 0:00:12]} 33. Nf4 {[%emt 0:01:21]} a6 {[%emt 0:01:07]} 34. Na3 {[%emt 0:00:01]} Nd4 {[%emt 0:00:23]} 35. Qf2 {[%emt 0:00:37]} Qc6 {[%emt 0:00:55]} 36. Re3 {[%emt 0:00:17]} Kg7 {[%emt 0:00:35]} 37. Nc2 {[%emt 0:00:14]} Nf5 {[%emt 0:00:37]} 38. Re5 {[%emt 0:00:06]} b6 {[%emt 0:00:26]} 39. Qe2 {[%emt 0:00:27]} Bc8 {[%emt 0:00:34]} 40. Nd5 {[%emt 0:01:08]} Be6 {[%emt 0:00:01]} 41. Nf4 {[%emt 0:00:55]} Bc8 {[%emt 0:00:01]} 42. Qe4 {[%emt 0:00:21]} Qf6 {[%emt 0:00:37]} 43. Nd5 {[%emt 0:00:16]} Qg5 {[%emt 0:00:41]} 44. Nce3 {[%emt 0:00:08]} Rh8 {[%emt 0:00:55]} 45. Nxf5+ {[%emt 0:01:29]} Bxf5 {[%emt 0:00:09]} 46. Qe3 {[%emt 0:00:36]} Qh5 {[%emt 0:00:16]} 47. Qe2 {[%emt 0:00:27]} Qg5 {[%emt 0:01:07]} 48. Re7 {[%emt 0:00:26]} Be6 {[%emt 0:00:41]} 49. Qxe6 {[%emt 0:00:09]} Qc1+ {[%emt 0:01:13]} 50. Qe1 {[%emt 0:00:05]} Qh6 {[%emt 0:00:00]} 51. Qe5+ {[%emt 0:00:05]} 1-0